bitfinex-derivatives/quotes_ETHF0:USTF0_20260312
["timestamp","ask_amount","ask_price","bid_price","bid_amount"]
[1773307484577,1.50655087,2041.6,2041.0,0.5762545]
[1773307484578,0.17313801,2041.6,2041.0,0.5762545]
[1773307485075,1.50655087,2041.6,2041.1,0.24495]
[1773307485275,1.50655087,2041.6,2041.2,0.5762545]
[1773307485675,0.17313801,2041.6,2041.2,0.5762545]
[1773307486378,0.17313801,2041.6,2041.1,0.8212045]
[1773307486674,0.17313801,2041.6,2041.2,0.5762545]
[1773307495183,0.17313801,2041.6,2041.1,0.80087733]
[1773307495486,0.16337671,2041.4,2040.8,0.55592733]
[1773307505995,1.33301662,2041.5,2040.8,0.55592733]
[1773307506197,1.47725651,2041.5,2040.8,0.55592733]
[1773307507196,0.14538098,2041.4,2040.8,0.55592733]
[1773307513504,1.33301662,2041.5,2040.8,0.55592733]
[1773307513706,1.47048384,2041.5,2040.8,0.55592733]
[1773307514804,0.13746722,2041.5,2040.8,0.55592733]
[1773307519712,0.13827539,2041.4,2040.8,0.55592733]
[1773307534724,0.00401916,2041.6,2041.0,0.5785788]
[1773307537021,0.00401916,2041.6,2041.2,0.5785788]
[1773307542627,6.45385132,2041.9,2041.2,0.5785788]
[1773307542824,6.58644705,2041.9,2041.2,0.5785788]
[1773307543625,6.45903571,2041.9,2041.2,0.5785788]
[1773307543828,0.00518439,2041.9,2041.2,0.5785788]
[1773307544024,6.58422789,2042.2,2041.4,0.5569972]
[1773307544229,0.13216555,2042.2,2041.4,0.5569972]
[1773307544426,0.37094995,2042.6,2042.0,0.5569972]
[1773307544630,0.37094995,2042.9,2042.0,0.5569972]
[1773307545129,0.37576865,2042.9,2042.0,0.56125296]
[1773307545426,0.0048187,2042.9,2042.2,0.5569972]
[1773307545727,1.012,2043.1,2042.4,0.5569972]
[1773307546027,0.53786471,2043.7,2042.6,0.5569972]
[1773307546422,0.51586471,2043.7,2043.3,0.022]
[1773307546822,0.51986988,2043.7,2043.3,0.022]
[1773307547230,0.56386988,2043.7,2043.3,0.5789972]
[1773307547930,1.86805065,2043.8,2043.3,0.5789972]
[1773307548131,1.86805065,2043.8,2043.3,0.5569972]
[1773307548426,0.53786471,2043.7,2043.6,0.022]
[1773307548626,0.50045961,2043.7,2043.6,0.022]
[1773307548831,1.84605065,2043.8,2043.6,0.022]
[1773307549032,1.85106182,2043.8,2043.6,0.02710842]
[1773307549933,0.53786471,2043.7,2043.6,0.02710842]
[1773307550525,0.53786471,2043.7,2043.2,0.56298822]
[1773307550728,1.87097878,2043.6,2043.2,0.56298822]
[1773307551128,0.54079284,2043.6,2043.2,0.56298822]
[1773307551328,0.066,2043.7,2043.2,0.56298822]
[1773307551527,0.066,2043.7,2043.2,0.56931177]
[1773307552631,0.066,2043.7,2043.3,0.54098822]
[1773307558137,0.54079284,2043.3,2043.0,0.56298822]
[1773307558441,1.87097878,2043.4,2043.0,0.56298822]
[1773307558840,1.33018594,2043.4,2043.0,0.56298822]
[1773307559341,1.33018594,2043.4,2043.0,0.5691248]
[1773307559542,0.54079284,2043.3,2043.0,0.5691248]
[1773307559741,1.87097878,2043.4,2043.0,0.5691248]
[1773307559938,0.54079284,2043.3,2043.0,0.02813658]
[1773307560240,0.54079284,2043.3,2042.9,0.54098822]
[1773307561238,0.54079284,2043.1,2042.9,0.00425505]
[1773307561438,1.87097878,2043.0,2042.7,0.46197644]
[1773307561634,0.54079284,2043.1,2042.7,0.46197644]
[1773307562342,0.54079284,2043.1,2042.7,0.46606923]
[1773307562542,1.46218594,2043.4,2042.7,0.46606923]
[1773307563043,2.00297878,2043.4,2042.7,0.46606923]
[1773307565645,2.00297878,2043.4,2042.8,0.54098822]
[1773307567147,0.67279284,2043.4,2042.8,0.54098822]
[1773307567844,2.00297878,2043.4,2042.8,0.54098822]
[1773307568146,0.54079284,2043.3,2042.8,0.54098822]
[1773307570950,0.54079284,2043.3,2042.8,0.78572822]
[1773307571247,0.54079284,2043.3,2042.9,0.54098822]
[1773307573052,0.54079284,2043.2,2042.7,0.54508101]
[1773307573955,0.54079284,2043.0,2042.7,0.54508101]
[1773307575146,1.87097878,2043.1,2042.7,0.54508101]
[1773307575751,0.54079284,2043.0,2042.7,0.54508101]
[1773307576250,0.54079284,2043.2,2042.7,0.54508101]
[1773307578453,0.67279284,2043.4,2042.8,0.54098822]
[1773307582649,0.67279284,2043.4,2042.9,0.57077345]
[1773307584558,0.64465618,2043.4,2042.9,0.57077345]
[1773307584755,0.10386334,2043.4,2043.1,0.57077345]
[1773307587458,0.56794694,2043.8,2043.2,1.33018594]
[1773307587655,0.56794694,2043.8,2043.3,0.57077345]
[1773307587656,0.56293577,2043.7,2043.3,0.57077345]
[1773307587862,0.54093577,2043.7,2043.5,0.022]
[1773307589761,1.87112171,2043.7,2043.3,0.022]
[1773307589964,0.56293577,2043.6,2043.3,0.022]
[1773307592068,0.56293577,2043.6,2043.3,0.59277345]
[1773307592270,0.044,2043.7,2043.3,0.59277345]
[1773307592561,0.56794694,2043.8,2043.3,0.59277345]
[1773307592766,0.56794694,2043.8,2043.3,0.57077345]
[1773307593056,0.56794694,2043.8,2043.4,0.59277345]
[1773307593057,0.54594694,2043.8,2043.4,0.59277345]
[1773307593259,0.54594694,2043.8,2043.4,0.022]
[1773307593667,0.58994694,2043.8,2043.4,0.022]
[1773307594067,0.5938277,2043.8,2043.4,0.022]
[1773307594261,0.5938277,2043.8,2043.4,0.59277345]
[1773307594765,0.56293577,2043.9,2043.4,0.59277345]
[1773307595066,0.56293577,2044.0,2043.4,0.57077345]
[1773307595374,0.56293577,2043.6,2043.3,0.022]
[1773307595760,0.56293577,2043.4,2043.1,0.022]
[1773307596463,0.56293577,2043.2,2042.9,0.022]
[1773307596968,0.56293577,2043.2,2042.9,0.59277345]
[1773307600159,0.56293577,2043.4,2042.9,0.59277345]
[1773307605270,1.89312171,2043.4,2042.9,0.59277345]
[1773307605474,0.57452844,2043.3,2042.9,0.59277345]
[1773307613475,0.57452844,2043.3,2042.7,0.02609279]
[1773307613673,0.5672906,2043.1,2042.7,0.02609279]
[1773307614172,0.5672906,2043.1,2042.7,0.58192347]
[1773307614776,0.5672906,2043.4,2042.7,0.58192347]
[1773307615676,0.5672906,2043.4,2042.9,0.55583068]
[1773307619276,0.5672906,2043.2,2042.0,12.7936577]
[1773307619483,0.5672906,2042.7,2042.1,0.57783068]
[1773307619681,0.5672906,2043.1,2042.1,0.57783068]
[1773307619983,0.5672906,2043.0,2042.1,0.57783068]
[1773307620480,0.5672906,2043.0,2042.1,0.58404857]
[1773307621681,0.5672906,2043.0,2042.3,0.55583068]
[1773307622185,0.5672906,2043.0,2041.9,0.022]
[1773307622376,0.5672906,2042.2,2041.7,0.57783068]
[1773307622582,0.5672906,2042.2,2041.7,0.022]
[1773307623278,0.5672906,2042.2,2041.7,0.02748623]
[1773307626086,0.8121806,2041.6,2040.7,0.022]
[1773307626388,0.5672906,2041.1,2040.7,0.022]
[1773307627189,0.57147583,2041.1,2040.7,0.02680067]
[1773307628787,6.02658,2040.9,2039.7,0.022]
[1773307628986,0.52144187,2040.4,2039.2,0.55583068]
[1773307629291,0.52144187,2040.2,2039.2,0.55583068]
[1773307629885,0.52144187,2040.2,2039.5,0.02734214]
[1773307631585,0.52144187,2040.2,2038.2,0.55583068]
[1773307631586,0.40539015,2039.3,2038.2,0.55583068]
[1773307631783,0.4079843,2039.1,2038.3,0.57783068]
[1773307632489,0.0038273,2039.1,2038.5,0.55583068]
[1773307632687,0.40809104,2039.5,2038.5,0.55583068]
[1773307633898,0.41341245,2039.5,2038.5,0.55583068]
[1773307639400,0.00532141,2039.5,2038.7,0.55583068]
[1773307639606,0.24503,2040.5,2038.9,0.55583068]
[1773307639607,0.40361062,2039.9,2038.9,0.55583068]
[1773307640296,0.40998093,2040.1,2039.1,0.57515918]
[1773307640506,0.4161085,2040.1,2039.1,0.57515918]
[1773307640709,0.4161085,2040.1,2039.3,0.57515918]
[1773307643611,0.00612757,2040.1,2039.5,0.57515918]
[1773307650216,0.42897023,2040.5,2039.7,0.57515918]
[1773307651320,0.43376539,2040.5,2039.7,0.57515918]
[1773307652522,0.00479516,2040.5,2039.7,0.57515918]
[1773307656418,0.00479516,2040.5,2039.9,0.57515918]
[1773307656618,0.00479516,2040.5,2039.9,0.58016044]
[1773307657423,0.44232526,2040.9,2039.9,0.58016044]
[1773307657726,7.12184903,2041.0,2040.1,0.57515918]
[1773307658022,0.44402278,2041.0,2040.1,0.57515918]
[1773307658421,0.44925133,2041.0,2040.1,0.57515918]
[1773307658823,0.44925133,2041.0,2040.3,0.57515918]
[1773307669928,0.44925133,2041.0,2040.0,0.62925746]
[1773307670128,0.46990376,2040.9,2040.0,0.62925746]
[1773307672730,0.47014372,2040.7,2040.0,0.62925746]
[1773307674833,0.47043603,2040.5,2039.9,0.00500126]
[1773307675131,7.15348756,2040.5,2039.9,0.00500126]
[1773307675433,0.47043603,2040.5,2039.9,0.00500126]
[1773307675634,0.49201603,2040.3,2039.6,0.58971084]
[1773307676630,0.49201603,2040.3,2039.6,0.59423089]
[1773307680937,0.49365622,2040.2,2039.6,0.59423089]
[1773307681133,8.19337722,2040.4,2039.6,0.59423089]
[1773307681341,0.49237722,2040.3,2039.6,0.59423089]
[1773307682239,0.49368021,2040.7,2039.6,0.59423089]
[1773307682441,0.49368021,2040.6,2039.6,0.59423089]
[1773307683540,0.49368021,2040.6,2039.8,0.58971084]
[1773307691642,1.82815794,2040.6,2039.8,0.58971084]
[1773307693552,0.49368021,2040.6,2039.8,0.58971084]
[1773307694051,0.5304619,2040.7,2040.0,0.58971084]
[1773307694248,0.5304619,2040.9,2040.0,0.58971084]
[1773307702255,0.53990785,2040.7,2040.0,0.58971084]
[1773307705351,0.54025357,2040.9,2040.0,0.58971084]
[1773307713071,0.00522855,2041.0,2040.3,0.65334183]
[1773307715572,0.00522855,2041.0,2040.6,0.65334183]
[1773307717068,0.616,2041.3,2040.9,0.67420553]
[1773307717671,0.61726083,2041.3,2040.9,0.67420553]
[1773307718065,0.6227649,2041.3,2040.9,0.67420553]
[1773307720566,0.62150407,2041.3,2040.9,0.67420553]
[1773307724374,0.63382947,2041.3,2040.9,0.67420553]
[1773307724779,0.62150407,2041.3,2040.9,0.67420553]
[1773307727480,0.64308412,2041.3,2040.9,0.67420553]
[1773307728081,0.62150407,2041.3,2040.9,0.67420553]
[1773307729178,0.62150407,2041.3,2040.6,1.33352366]
[1773307729179,0.29606999,2041.5,2041.1,0.67471935]
[1773307729674,0.27406999,2041.5,2041.1,0.69671935]
[1773307730280,0.32407916,2041.5,2041.1,0.70221497]
[1773307739982,0.05000917,2041.5,2041.1,0.70221497]
[1773307743687,0.27532291,2041.3,2041.0,0.65447291]
[1773307743886,0.27532291,2041.3,2040.9,0.67647291]
[1773307744688,0.34246453,2041.4,2040.9,0.68106208]
[1773307750596,0.00600917,2041.5,2040.9,0.68106208]
[1773307750792,6.94762111,2041.8,2040.9,0.65906208]
[1773307751090,0.24609283,2041.9,2041.7,0.022]
[1773307751389,4.05000803,2042.1,2041.7,0.022]
[1773307751390,0.24609283,2042.1,2041.7,0.022]
[1773307751593,1.98250287,2041.8,2041.4,0.65447291]
[1773307751783,0.71986839,2041.8,2041.4,0.65447291]
[1773307758302,0.0705858,2041.8,2041.4,0.65447291]
[1773307758503,0.71986839,2041.8,2041.4,0.65447291]
[1773307759104,0.71986839,2041.8,2041.3,0.022]
[1773307759305,0.64928259,2041.7,2041.1,0.67647291]
[1773307759604,0.73728259,2041.7,2041.1,0.67647291]
[1773307778215,0.088,2041.7,2041.1,0.67647291]
[1773307778616,0.0045858,2041.8,2041.1,0.67647291]
[1773307778815,0.0045858,2041.8,2041.1,0.89941291]
[1773307779017,0.67944236,2042.0,2041.7,0.68964247]
[1773307779320,7.37172553,2042.0,2041.7,0.68964247]
[1773307779618,0.0045858,2041.9,2041.7,0.68964247]
[1773307779815,0.67944236,2042.0,2041.7,0.68964247]
[1773307780017,0.68313273,2042.0,2041.7,0.68964247]
[1773307782820,0.68313273,2042.0,2041.6,0.71041514]
[1773307783027,0.70355626,2041.9,2041.6,0.2586681]
[1773307789330,0.66324663,2042.0,2041.6,0.2586681]
[1773307789724,0.64124663,2042.0,2041.8,0.022]
[1773307790836,0.6711177,2041.8,2041.2,0.022]
[1773307791135,0.6711177,2041.6,2041.2,0.022]
[1773307791637,2.00430556,2041.6,2041.2,0.022]
[1773307791937,0.6711177,2041.5,2041.2,0.022]
[1773307792132,0.6711177,2041.5,2041.0,0.022]
[1773307792440,0.6711177,2041.5,2040.7,0.66038096]
[1773307792441,0.6711177,2041.0,2040.7,0.66038096]
[1773307792638,0.6711177,2041.1,2040.7,0.66038096]
[1773307793231,0.6711177,2041.1,2040.7,0.66601113]
[1773307793436,0.6711177,2040.9,2040.5,0.18056951]
[1773307793635,0.6711177,2041.2,2040.5,0.18056951]
[1773307794531,0.6711177,2041.2,2040.5,0.18425133]
[1773307795135,0.6711177,2041.2,2040.5,0.00368182]
[1773307795333,0.6711177,2040.8,2040.5,0.66406278]
[1773307795540,0.6711177,2041.0,2040.5,0.66406278]
[1773307796436,0.6711177,2041.0,2040.4,0.022]
[1773307796740,0.6711177,2041.1,2040.5,0.66038096]
[1773307797642,0.6711177,2041.1,2040.5,0.6666058]
[1773307799038,0.6711177,2041.1,2040.8,0.66038096]
[1773307799337,1.50918786,2041.4,2040.5,0.00622484]
[1773307799338,0.6711177,2041.3,2040.5,0.6666058]
[1773307799542,0.6711177,2041.2,2040.6,0.66038096]
[1773307800432,0.176,2041.4,2041.0,0.66038096]
[1773307800634,0.8471177,2041.4,2041.0,0.66038096]
[1773307800837,0.6711177,2041.6,2041.0,0.66038096]
[1773307801235,0.6491177,2041.8,2041.4,0.022]
[1773307801539,0.00468764,2042.0,2041.4,0.022]
[1773307801540,0.6711177,2041.6,2041.4,0.022]
[1773307803836,0.6711177,2041.6,2041.2,0.68238096]
[1773307812444,0.044,2041.7,2041.2,0.68238096]
[1773307812648,0.044,2041.7,2041.0,1.35518786]
[1773307812649,0.67580534,2042.0,2041.6,0.66038096]
[1773307813043,0.67580534,2042.0,2041.8,0.022]
[1773307813044,0.65380534,2042.0,2041.8,0.022]
[1773307813948,0.6587344,2042.0,2041.8,0.022]
[1773307814345,4.09479505,2042.6,2041.9,0.66038096]
[1773307814551,6.01721,2044.1,2042.5,1.33318786]
[1773307814552,0.6711177,2043.0,2042.5,1.33318786]
[1773307814741,0.6491177,2043.0,2042.8,0.022]
[1773307815549,0.65429832,2043.0,2042.8,0.02546847]
[1773307817851,0.29110605,2043.0,2042.8,0.02546847]
[1773307818150,0.14822257,2043.0,2042.6,0.022]
[1773307819055,0.14822257,2043.0,2042.6,0.02642482]
[1773307821258,0.14822257,2043.0,2042.6,0.76338894]
[1773307822052,0.14822257,2043.0,2042.6,0.02642482]
[1773307823461,0.14822257,2043.0,2042.6,0.76338894]
[1773307823856,0.14822257,2043.0,2042.6,0.02642482]
[1773307824658,0.73287598,2042.9,2042.4,0.022]
[1773307824858,0.73287598,2042.5,2042.2,0.022]
[1773307825263,0.73287598,2042.5,2042.0,0.022]
[1773307825465,0.088,2042.8,2042.0,0.022]
[1773307825466,0.73287598,2042.3,2042.0,0.022]
[1773307825655,0.73287598,2042.3,2042.0,0.00371412]
[1773307825860,0.73287598,2042.3,2041.8,0.75896412]
[1773307826763,0.73287598,2042.3,2041.8,0.7636312]
[1773307829161,0.73287598,2042.3,2042.0,0.73696412]
[1773307829667,0.73287598,2042.3,2041.9,2.07015198]
[1773307829859,0.088,2042.8,2041.8,0.02666708]
[1773307829860,0.088,2042.8,2042.2,0.73696412]
[1773307830061,0.7380566,2043.0,2042.7,2.07015198]
[1773307830262,0.71234234,2043.0,2042.7,2.07015198]
[1773307830563,0.71234234,2043.0,2042.7,0.73696412]
[1773307830956,0.71234234,2043.0,2042.8,0.022]
[1773307831156,0.71753426,2043.0,2042.8,0.022]
[1773307832056,0.71753426,2043.0,2042.6,0.022]
[1773307832662,0.71753426,2043.0,2042.4,0.022]
[1773307832663,0.73287598,2042.8,2042.4,0.022]
[1773307832863,0.73287598,2042.8,2042.4,0.75896412]
[1773307844371,0.73287598,2042.8,2042.4,0.022]
[1773307844571,0.73287598,2042.8,2042.2,0.77079872]
[1773307844572,0.066,2042.7,2042.2,0.022]
[1773307844770,0.77897349,2042.6,2042.2,0.022]
[1773307844965,0.77897349,2042.6,2042.0,0.77079872]
[1773307844966,0.77897349,2042.6,2042.0,0.022]
[1773307845172,0.86697349,2042.6,2042.0,0.022]
[1773307849083,0.86697349,2042.6,2041.8,0.7754658]
[1773307849282,0.77897349,2042.4,2041.8,0.02666708]
[1773307849584,0.77897349,2042.4,2041.6,0.022]
[1773307849585,0.91097349,2042.4,2041.6,0.022]
[1773307849784,0.91097349,2042.4,2041.6,0.77079872]
[1773307850485,0.91097349,2042.4,2041.6,0.77533222]
[1773307851287,0.91097349,2042.4,2041.9,0.74898412]
[1773307852688,0.76278306,2042.0,2041.2,0.77098412]
[1773307853188,0.76278306,2041.8,2041.2,0.022]
[1773307853583,0.76278306,2041.7,2041.2,0.00376585]
[1773307855285,0.76278306,2040.8,2040.2,0.022]
[1773307855588,0.76278306,2040.6,2040.0,0.022]
[1773307856182,0.76693984,2040.6,2040.0,0.026913]
[1773307856983,0.76693984,2040.6,2040.0,0.77589712]
[1773307857880,0.76693984,2040.6,2039.6,0.77098412]
[1773307858991,0.76693984,2040.6,2039.6,0.77501569]
[1773307859690,0.76693984,2040.6,2039.8,0.74898412]
[1773307860786,0.00415678,2040.6,2040.0,0.74898412]
[1773307860991,0.76278306,2041.3,2040.2,0.74898412]
[1773307861388,0.76278306,2041.3,2039.9,0.74898412]
[1773307861989,0.76278306,2041.2,2039.9,0.74898412]
[1773307862292,0.76278306,2041.2,2040.1,0.74898412]
[1773307863790,0.76278306,2041.2,2039.9,0.74898412]
[1773307863989,0.76278306,2041.2,2039.4,0.77098412]
[1773307863990,0.76278306,2040.9,2039.4,0.77098412]
[1773307864196,0.76278306,2040.7,2039.4,0.022]
[1773307864395,0.76278306,2040.3,2039.4,0.77098412]
[1773307866198,0.76278306,2040.3,2039.4,0.022]
[1773307867388,0.76278306,2039.7,2038.8,0.77098412]
[1773307868498,0.76698481,2039.7,2038.8,0.77489921]
[1773307870699,0.76698481,2039.7,2039.0,0.74898412]
[1773307870888,0.00420175,2039.7,2039.0,0.74898412]
[1773307871095,0.00420175,2039.7,2039.2,0.74898412]
[1773307871590,0.76278306,2040.0,2039.2,0.74898412]
[1773307872388,0.76278306,2040.0,2039.4,0.74898412]
[1773307872594,0.00629659,2040.0,2039.4,0.74898412]
[1773307874791,6.59e-06,2040.0,2039.6,0.74898412]
[1773307874996,0.76278306,2040.3,2039.6,0.74898412]
[1773307875397,0.76278306,2040.9,2039.8,0.74898412]
[1773307876100,0.76865823,2040.9,2039.8,0.74898412]
[1773307881100,0.44,2041.0,2040.4,0.83376582]
[1773307881303,0.37446757,2041.0,2040.4,0.83376582]
[1773307881803,0.79861009,2041.4,2040.6,0.83376582]
[1773307882099,0.79861009,2041.4,2041.2,0.022]
[1773307883107,0.80326203,2041.4,2041.2,0.022]
[1773307884007,0.00465194,2041.4,2041.2,0.022]
[1773307884709,0.80326203,2041.4,2041.2,0.022]
[1773307885110,0.00465194,2041.4,2041.2,0.022]
[1773307885310,0.00465194,2041.4,2041.2,0.85576582]
[1773307885605,0.79861009,2041.8,2041.2,0.85576582]
[1773307886600,0.80339439,2041.8,2041.2,0.85576582]
[1773307887000,0.80339439,2041.8,2041.2,0.022]
[1773307891816,0.0047843,2041.8,2041.2,0.85576582]
[1773307892505,0.80339439,2041.8,2041.2,0.85576582]
[1773307899022,0.80339439,2041.8,2041.2,0.022]
[1773307906524,0.044,2041.6,2041.0,0.022]
[1773307906827,0.8273287,2041.5,2041.0,0.022]
[1773307907422,0.8273287,2041.5,2041.0,0.79894904]
[1773307907628,0.8713287,2041.6,2041.0,0.79894904]
[1773307915444,0.8713287,2041.6,2040.8,0.022]
[1773307915445,0.68082078,2042.6,2041.9,0.19237081]
[1773307915738,0.83588386,2043.4,2042.5,0.21437081]
[1773307916241,0.85788386,2043.1,2042.5,0.21437081]
[1773307916435,0.85788386,2043.1,2042.5,0.21973463]
[1773307917241,0.85788386,2043.3,2042.5,0.21973463]
[1773307917643,0.85788386,2043.3,2042.7,0.8184259]
[1773307919144,0.00502705,2043.4,2042.5,0.81273615]
[1773307919145,0.85788386,2043.2,2042.5,0.81273615]
[1773307919343,0.85788386,2043.2,2042.5,0.00536382]
[1773307919843,0.85788386,2043.1,2042.5,0.00536382]
[1773307920232,0.85788386,2043.1,2042.5,0.81001983]
[1773307920634,7.36164422,2043.1,2042.5,0.00536382]
[1773307920943,0.85788386,2043.1,2042.5,0.00536382]
[1773307921143,6.50376036,2043.0,2042.5,0.00536382]
[1773307921339,0.85788386,2042.9,2042.5,0.00536382]
[1773307921741,0.85788386,2042.8,2042.5,0.00536382]
[1773307924942,7.36164422,2042.8,2042.4,0.022]
[1773307925150,0.85788386,2042.8,2042.4,0.022]
[1773307925447,7.36164422,2042.8,2042.4,0.022]
[1773307925648,0.85788386,2042.7,2042.4,0.022]
[1773307926045,0.85788386,2042.7,2042.4,0.02559349]
[1773307928750,0.85788386,2042.6,2042.4,0.02559349]
[1773307928951,0.85788386,2042.6,2042.1,0.24483]
[1773307929553,0.85788386,2042.6,2042.1,0.48943114]
[1773307929752,0.85788386,2042.6,2042.2,0.07197689]
[1773307929948,0.85788386,2042.6,2042.2,0.07575538]
[1773307931156,0.85788386,2042.6,2042.2,0.00377849]
[1773307932446,0.85788386,2042.6,2042.2,0.08327287]
[1773307933047,0.85788386,2042.6,2042.2,0.00377849]
[1773307933755,1.16881176,2042.4,2042.2,0.00377849]
[1773307934054,1.16881176,2042.4,2042.0,0.022]
[1773307934656,1.16881176,2042.4,2042.1,0.24483]
[1773307934857,1.16881176,2042.4,2042.1,0.24968276]
[1773307935452,1.16915862,2042.3,2041.6,0.022]
[1773307935657,1.16915862,2042.3,2041.7,0.24484498]
[1773307935854,1.16673224,2041.9,2041.7,0.24484498]
[1773307936055,0.98060332,2041.9,2041.6,0.022]
[1773307936358,7.48436368,2041.9,2041.6,0.022]
[1773307936558,0.6792914,2041.9,2041.6,0.85046028]
[1773307936757,0.6792914,2041.9,2041.6,0.6033504]
[1773307937856,0.6792914,2041.9,2041.6,0.0261285]
[1773307938058,7.18305176,2041.9,2041.6,0.0261285]
[1773307938362,0.9173416,2041.8,2041.6,0.0261285]
[1773307939361,7.42110196,2041.8,2041.6,0.0261285]
[1773307939560,0.91632219,2041.9,2041.6,0.64773906]
[1773307939960,6.50376036,2041.8,2041.6,0.64773906]
[1773307940653,0.00440264,2041.9,2041.6,0.64773906]
[1773307940857,1.20040172,2042.4,2041.7,0.99482921]
[1773307941053,0.11,2042.5,2041.9,0.99482921]
[1773307941460,1.31040172,2042.5,2041.9,0.99482921]
[1773307941957,1.31486322,2042.5,2041.9,0.99482921]
[1773307942654,1.31486322,2042.5,2042.0,0.24484]
[1773307942861,1.31486322,2042.5,2042.1,1.20770561]
[1773307943059,1.29286316,2042.5,2042.1,1.20770561]
[1773307944560,0.09246144,2042.5,2042.1,1.20770561]
[1773307945264,1.20040172,2042.8,2042.1,1.20770561]
[1773307945456,1.17840172,2042.8,2042.3,1.22970561]
[1773307946063,1.18301501,2042.8,2042.3,1.22970561]
[1773307949060,0.00461329,2042.8,2042.3,1.22970561]
[1773307949261,1.20501501,2042.8,2042.3,1.22970561]
[1773307950065,0.00461329,2042.8,2042.3,1.22970561]
[1773307950362,0.022,2042.9,2042.4,1.20770561]
[1773307950664,1.20040172,2043.1,2042.5,1.20770561]
[1773307951160,1.18365962,2043.1,2042.9,0.022]
[1773307951463,1.20565962,2043.1,2042.9,0.022]
[1773307951762,1.20565962,2043.1,2042.7,1.22970561]
[1773307951763,1.24965962,2043.1,2042.7,1.22970561]
[1773307954362,1.24965962,2043.1,2042.7,0.022]
[1773307956365,1.24965962,2043.1,2042.7,0.26907471]
[1773307956666,1.24965962,2043.1,2042.7,1.47678032]
[1773307957363,1.22487792,2043.5,2042.9,1.20770561]
[1773307957661,1.20287792,2043.5,2043.1,0.022]
[1773307958370,1.25268175,2043.5,2043.1,0.02781357]
[1773307959066,1.25268175,2043.5,2043.1,1.23551918]
[1773307961164,1.25268175,2043.5,2042.7,0.022]
[1773307961365,1.20040172,2043.2,2042.3,0.022]
[1773307961667,1.31040172,2043.2,2042.3,0.022]
[1773307962264,1.31040172,2043.2,2042.1,0.022]
[1773307962265,1.20040172,2043.1,2042.1,0.022]
[1773307962469,1.20040172,2042.9,2042.1,0.26106762]
[1773307963364,1.20040172,2042.9,2042.1,0.26618252]
[1773307964267,1.20040172,2042.9,2042.1,1.70087801]
[1773307967372,1.20040172,2042.9,2042.3,1.43469549]
[1773307970878,1.48726719,2043.0,2042.3,1.43469549]
[1773307971884,1.48726719,2043.0,2042.5,1.34825664]
[1773307972388,1.48726719,2043.0,2042.2,1.34825664]
[1773307980794,1.48726719,2043.0,2042.1,1.61443916]
[1773307993704,1.48726719,2043.0,2042.1,0.26618252]
[1773307993909,1.33326719,2042.8,2042.1,0.26618252]
[1773307996408,1.33326719,2042.8,2041.9,0.022]
[1773307996613,1.33326719,2042.8,2041.9,1.37025664]
[1773307997519,1.33326719,2042.8,2041.9,1.37462078]
[1773307999111,1.33326719,2042.8,2041.9,1.622772]
[1773308002014,1.32832272,2042.6,2041.6,1.36146067]
[1773308002215,1.32832272,2042.4,2041.6,1.36146067]
[1773308003016,1.32832272,2042.4,2041.6,1.36514735]
[1773308004918,1.32832272,2041.9,2041.1,1.38346067]
[1773308006025,1.33312402,2041.9,2041.1,1.38856563]
[1773308006624,1.33312402,2041.9,2041.1,0.02710496]
[1773308006822,1.33312402,2041.9,2041.1,1.38856563]
[1773308007619,1.33312402,2041.9,2040.7,0.022]
[1773308007620,1.33312402,2041.9,2040.7,1.38346067]
[1773308008421,1.33312402,2041.9,2040.7,1.38877965]
[1773308010132,1.33312402,2041.9,2040.5,0.26702]
[1773308010133,1.32832272,2041.3,2040.5,0.022]
[1773308011128,1.32832272,2041.3,2040.5,1.38708015]
[1773308015241,1.32832272,2041.3,2040.5,0.02561948]
[1773308016439,1.32832272,2041.8,2040.7,1.36146067]
[1773308016743,1.32832272,2041.8,2040.9,1.36146067]
[1773308022047,1.32832272,2041.8,2041.1,1.36146067]
[1773308022243,1.33312402,2041.9,2041.1,1.36146067]
[1773308023949,0.0048013,2041.9,2041.3,1.30929536]
[1773308024849,1.2596542,2041.9,2041.3,1.30929536]
[1773308025150,1.2596542,2041.9,2041.0,1.30929536]
[1773308029749,1.2596542,2041.9,2040.5,0.02561948]
[1773308029750,1.2548529,2041.7,2040.5,1.33491484]
[1773308030648,1.2548529,2041.7,2040.7,1.22565989]
[1773308032453,1.2548529,2041.7,2040.5,1.49376968]
[1773308036154,1.28398221,2041.5,2040.5,1.49376968]
[1773308041660,1.28398221,2041.3,2040.6,1.22565989]
[1773308043060,1.28398221,2041.1,2040.6,1.22565989]
[1773308043360,1.28398221,2041.5,2040.8,1.22565989]
[1773308043554,1.28398221,2041.5,2040.9,2.55915767]
[1773308044657,1.28398221,2041.5,2041.0,1.22565989]
[1773308048365,1.28398221,2041.5,2040.8,1.22565989]
[1773308049459,1.28398221,2041.3,2040.8,1.22565989]
[1773308050260,1.28398221,2041.3,2040.5,1.25127937]
[1773308050469,1.28398221,2041.2,2040.5,1.25127937]
[1773308052769,1.28398221,2041.0,2040.5,1.25127937]
[1773308054169,1.28398221,2041.5,2040.5,1.25127937]
[1773308054370,1.28398221,2041.3,2040.5,1.25127937]
[1773308060777,1.28398221,2041.3,2040.7,1.24398175]
[1773308062677,1.15732419,2041.7,2040.7,1.24398175]
[1773308063778,1.15732419,2041.7,2040.9,1.24398175]
[1773308068375,1.16212549,2041.9,2041.1,1.24398175]
[1773308068578,1.16212549,2041.9,2041.2,1.24398175]
[1773308070382,1.16212549,2041.9,2040.7,1.22630009]
[1773308070383,1.19074227,2041.6,2040.7,1.22630009]
[1773308070579,1.19074227,2041.6,2040.6,1.22630009]
[1773308075684,1.19074227,2041.1,2040.6,1.22630009]
[1773308087888,1.17697325,2041.5,2040.8,1.17253226]
[1773308088085,2.51065036,2041.4,2041.0,1.17253226]
[1773308088284,1.33367711,2041.4,2041.0,1.17253226]
[1773308088481,1.17697325,2041.3,2041.0,1.17253226]
[1773308088686,1.17697325,2041.3,2040.7,0.245]
[1773308088891,1.17697325,2041.3,2040.8,1.17253226]
[1773308091792,1.33367711,2041.4,2040.8,1.17253226]
[1773308091793,1.09122963,2041.4,2040.8,1.17253226]
[1773308095494,1.09122963,2041.5,2040.9,1.09197319]
[1773308099097,1.09122963,2041.5,2040.5,9.30530659]
[1773308099098,1.09122963,2041.0,2040.5,1.11759267]
[1773308099596,1.09122963,2041.1,2040.5,1.11759267]
[1773308102298,1.09122963,2041.1,2040.5,1.36522805]
[1773308102499,1.09122963,2041.1,2040.6,1.09197319]
[1773308104992,1.09122963,2041.4,2040.6,1.09197319]
[1773308105202,1.09122963,2041.4,2040.8,1.09197319]
[1773308105508,4.06122004,2041.9,2040.8,1.09197319]
[1773308105797,1.09122963,2041.7,2040.8,1.09197319]